[Event "FIDE Open World Rapid 2024"]
[Site "New York"]
[Date "2024.12.27"]
[Round "7.6"]
[White "Shankland, Sam"]
[Black "Caruana, Fabiano"]
[Result "1/2-1/2"]
[ECO "A05"]
[WhiteElo "2672"]
[BlackElo "2805"]
[Annotator "TA"]
[PlyCount "118"]
[EventDate "2024.12.14"]
[EventType "swiss"]
[EventCountry "USA"]
[SourceTitle "playchess.com"]
[Source "ChessBase"]
[SourceQuality "1"]
[TimeControl "900+10"]

{[%evp 35,118,54,76,0,0,0,0,0,0,0,0,0,3,7,4,6,6,0,0,0,0,0,0,0,8,0,89,37,51,45,46,42,247,208,255,245,232,208,177,73,18,111,118,24,29,-8,-8,-8,-8,-8,-8,-8,0,0,0,0,0,0,0,0,0,0,0,0,0,0,0,0,0,0,0,0,0,0,0,0,0,0,0,0,0,0,0,0,0]} 1. Nf3 {[%emt 0:00:01]} Nf6 {[%emt 0:00:07]} 2. g3 {[%emt 0:00:03]} b5 {[%emt 0:00:03]} 3. d3 {[%emt 0:00:13]} Bb7 {[%emt 0:00:05]} 4. e4 {[%emt 0:00:13]} e6 {[%emt 0:00:02]} 5. Bg2 {[%emt 0:00:37]} c5 {[%emt 0:00:39]} 6. O-O {[%emt 0:00:34]} Be7 {[%emt 0:00:02]} 7. e5 {[%emt 0:00:37]} Nd5 {[%emt 0:00:01]} 8. c4 {[%emt 0:00:10]} Nb6 {[%emt 0:00:44]} 9. Qe2 {[%emt 0:00:49]} O-O {[%emt 0:01:23]} 10. Nc3 {[%emt 0:00:26]} bxc4 {[%emt 0:01:47]} 11. dxc4 {[%emt 0:00:02]} Nc6 {[%emt 0:00:58]} 12. Rd1 {[%emt 0:00:21]} f6 {[%emt 0:01:12]} 13. exf6 {[%emt 0:00:39]} Bxf6 {[%emt 0:00:28]} 14. Be3 {[%emt 0:00:41]} Bxc3 {[%emt 0:00:24]} 15. bxc3 {[%emt 0:00:01]} Qe7 {[%emt 0:00:01]} 16. Ng5 {[%emt 0:01:34]} Na5 {[%emt 0:00:55]} 17. Bxb7 {[%emt 0:02:19]} Nxb7 {[%emt 0:00:01]} 18. Qd3 {[%emt 0:00:02]} Rf5 {[%emt 0:00:25]} 19. h4 {[%emt 0:00:33]} (19. Ne4 $16) 19... Na5 $11 {[%emt 0:00:30]} 20. g4 {[%emt 0:00:57]} Rxg5 $1 {[%emt 0:00:01]} 21. Bxg5 {[%emt 0:00:02]} Qf7 {[%emt 0:00:02]} 22. Qe2 {[%emt 0:01:52]} Naxc4 {[%emt 0:00:39]} 23. Rd3 {[%emt 0:00:14]} Rf8 {[%emt 0:00:48]} 24. h5 {[%emt 0:01:06]} h6 {[%emt 0:00:41]} 25. Bh4 {[%emt 0:03:19]} d5 {[%emt 0:03:02]} 26. Kg2 {[%emt 0:00:00]} e5 {[%emt 0:00:10]} 27. Rf3 {[%emt 0:00:00]} Qxf3+ {[%emt 0:00:22]} 28. Qxf3 {[%emt 0:00:00]} Rxf3 {[%emt 0:00:01]} 29. Kxf3 {[%emt 0:00:00]} Kf7 {[%emt 0:00:01]} 30. Ke2 {[%emt 0:00:00]} Ke6 {[%emt 0:00:46]} (30... Na4 $11) 31. Rg1 {[%emt 0:00:16]} ({Better is} 31. Rb1 $16) 31... d4 {[%emt 0:00:01]} 32. cxd4 {[%emt 0:00:18]} exd4 {[%emt 0:01:55]} 33. g5 {[%emt 0:00:38]} Kf5 $2 {[%emt 0:00:22]} (33... Nb2 $1 $14) 34. gxh6 $18 {[%emt 0:00:41]} gxh6 {[%emt 0:00:01]} 35. Be7 $1 {[%emt 0:00:11]} Na4 {[%emt 0:00:26]} 36. Bf8 $1 {[%emt 0:01:11]} Nc3+ {[%emt 0:00:42] [#]} 37. Kd3 {[%emt 0:00:00]} (37. Ke1 $1 $18 {and the rest is easy.}) 37... Ne5+ $16 {[%emt 0:00:05]} 38. Kc2 {[%emt 0:00:00]} Ne2 {[%emt 0:00:10] [#]} 39. Re1 {[%emt 0:00:32]} (39. Rh1 $1 $16 d3+ 40. Kb2) 39... d3+ $11 {[%emt 0:00:01]} 40. Kd2 {[%emt 0:00:07]} Nf3+ {[%emt 0:01:08]} 41. Kxd3 {[%emt 0:00:02]} Nf4+ {[%emt 0:00:01]} (41... Nxe1+ $2 {loses.} 42. Kxe2 Ng2 43. Bxh6 $18 (43. Bxc5 Nf4+ 44. Ke3 a6 $16)) 42. Kc4 {[%emt 0:00:14]} Nxe1 {[%emt 0:00:02]} 43. Bxh6 {[%emt 0:00:04]} Ne6 {[%emt 0:00:15]} (43... Nxh5 {simplifies} 44. Kxc5 Ke4 45. Kb5 Nf6) 44. Be3 {[%emt 0:00:10]} Nf3 {[%emt 0:00:30]} 45. h6 {[%emt 0:00:30]} Kg6 {[%emt 0:00:22]} 46. Bxc5 {[%emt 0:00:06]} a6 {[%emt 0:00:03]} (46... Kxh6 47. Bxa7 Kg6 48. Bb6 $17) 47. Be3 {[%emt 0:00:03]} Nh2 {[%emt 0:00:18]} 48. Kb4 {[%emt 0:00:09]} Ng4 {[%emt 0:00:03]} 49. Ka5 {[%emt 0:00:04]} Nxe3 {[%emt 0:00:18]} (49... Nxh6 50. Bxh6 Kxh6 51. Kxa6) 50. fxe3 {[%emt 0:00:01]} Nc5 {[%emt 0:00:03]} 51. Kb6 {[%emt 0:00:06]} Nd3 {[%emt 0:00:04]} 52. a4 {[%emt 0:00:08]} Kxh6 {[%emt 0:00:05]} 53. Kxa6 {[%emt 0:00:07]} Nc5+ {[%emt 0:00:07]} 54. Kb5 {[%emt 0:00:01]} Nxa4 {[%emt 0:00:01]} 55. Kxa4 {[%emt 0:00:01]} Kg5 {[%emt 0:00:01]} 56. Kb4 {[%emt 0:00:14]} Kf5 {[%emt 0:00:01]} 57. Kc3 {[%emt 0:00:02]} Ke4 {[%emt 0:00:01]} 58. Kd2 {[%emt 0:00:01]} Ke5 {[%emt 0:00:00]} 59. e4 {[%emt 0:00:01]} Kxe4 {[%emt 0:00:01]} 1/2-1/2

[Event "FIDE Open World Rapid 2024"]
[Site "New York"]
[Date "2024.12.27"]
[Round "7.7"]
[White "Nakamura, Hikaru"]
[Black "Sevian, Samuel"]
[Result "1/2-1/2"]
[ECO "C00"]
[WhiteElo "2802"]
[BlackElo "2696"]
[Annotator "TA"]
[PlyCount "60"]
[EventDate "2024.12.14"]
[EventType "swiss"]
[EventCountry "USA"]
[SourceTitle "playchess.com"]
[Source "ChessBase"]
[SourceQuality "1"]
[TimeControl "900+10"]

{[%evp 17,60,-11,-17,-46,-45,-56,-50,-58,-45,-46,-27,-74,-44,-86,-56,-71,-59,-68,-47,-44,0,0,0,-2,36,-61,-42,-79,-62,-81,0,-66,-29,-70,-27,-128,-56,-104,-50,-31,0,-122,0,-23,0]} 1. e4 {[%emt 0:00:02]} e6 {[%emt 0:00:07]} 2. d3 {[%emt 0:00:02]} d5 {[%emt 0:00:03]} 3. Qe2 {[%emt 0:00:02]} Nf6 {[%emt 0:00:34]} 4. Nf3 {[%emt 0:00:09]} c5 {[%emt 0:00:16]} 5. g3 {[%emt 0:00:38]} Nc6 {[%emt 0:00:33]} 6. Bg2 {[%emt 0:00:04]} Be7 {[%emt 0:00:30]} 7. O-O {[%emt 0:00:03]} b5 {[%emt 0:01:36]} 8. Re1 {[%emt 0:03:02]} O-O {[%emt 0:00:11]} 9. Nbd2 {[%emt 0:00:19]} a5 {[%emt 0:00:32]} 10. e5 {[%emt 0:00:20]} Nd7 {[%emt 0:00:03]} 11. Nf1 {[%emt 0:00:04]} b4 {[%emt 0:00:04]} 12. h4 {[%emt 0:00:12] Black is slightly better.} a4 {[%emt 0:00:02]} 13. a3 {[%emt 0:00:01]} bxa3 {[%emt 0:00:01]} 14. bxa3 {[%emt 0:00:01]} (14. Rxa3 $11 {was preferrable.} c4 15. Bg5) 14... Ba6 {[%emt 0:01:09]} 15. Bg5 {[%emt 0:01:48]} Rb8 {[%emt 0:00:15]} 16. Qd2 {[%emt 0:00:58]} Re8 {[%emt 0:03:06]} 17. Bxe7 {[%emt 0:01:05]} Qxe7 {[%emt 0:01:44]} ({Much worse is} 17... Rxe7 18. Qf4 $11) 18. Qf4 {[%emt 0:00:21]} c4 {[%emt 0:01:56]} 19. dxc4 {[%emt 0:00:14]} Bxc4 {[%emt 0:00:06]} 20. Ne3 {[%emt 0:00:05]} Na5 {[%emt 0:00:31]} 21. Nd4 {[%emt 0:01:57]} ({Better is} 21. h5 $14) 21... Rb6 {[%emt 0:00:00]} 22. Red1 {[%emt 0:01:16][%cal Od4f5]} Rc8 {[%emt 0:00:22]} 23. Bh3 {[%emt 0:00:24]} Re8 {[%emt 0:00:26]} (23... h6 $17) 24. Re1 {[%emt 0:00:09]} (24. Bg2 $1 $11) 24... Qc5 {[%emt 0:00:26]} 25. h5 {[%emt 0:01:16]} h6 $1 {[%emt 0:00:08]} 26. Ng4 {[%emt 0:00:51]} (26. g4 $11 {keeps the balance.}) 26... Qe7 {[%emt 0:00:21]} (26... Nc6 $17 27. Nxc6 Rxc6) 27. Nf3 {[%emt 0:00:08]} (27. Ne3 $15 {is superior.}) 27... Nc6 {[%emt 0:00:14]} (27... Ba6 $17 28. Nfh2 Nc4 29. Nxh6+ gxh6) 28. Nd2 $15 {[%emt 0:00:08]} Na5 {[%emt 0:00:14]} (28... Ba6 $15) 29. Nf3 $1 $17 {[%emt 0:00:01]} Nc6 {[%emt 0:00:01]} (29... Ba6 $17 30. Nxh6+ gxh6 31. Qxh6 Qf8) 30. Nd2 $1 $11 {[%emt 0:00:49]} Na5 {[%emt 0:00:09] Weighted Error Value: White=0.28 (precise) /Black=0.35.  Mistake:       	White=5     	Black=5      Inaccurate:     	White=3     	Black=5      OK:         	White=6     	Black=1      Strong:       	White=2     	Black=1} 1/2-1/2

[Event "FIDE Open World Rapid 2024"]
[Site "New York"]
[Date "2024.12.27"]
[Round "7.7"]
[White "Bai, Adelard"]
[Black "Oparin, Grigoriy"]
[Result "1/2-1/2"]
[ECO "D00"]
[WhiteElo "2393"]
[BlackElo "2653"]
[Annotator "ChessBase"]
[PlyCount "95"]
[EventDate "2024.12.14"]
[EventType "swiss"]
[EventCountry "USA"]
[SourceTitle "playchess.com"]
[Source "ChessBase"]
[SourceQuality "1"]
[TimeControl "900+10"]

1. d4 {[%emt 0:00:02]} Nf6 {[%emt 0:00:01]} 2. Nc3 {[%emt 0:00:01]} d5 {[%emt 0:00:04]} 3. Bf4 {[%emt 0:00:01]} e6 {[%emt 0:00:12]} 4. Nb5 {[%emt 0:00:03]} Bb4+ {[%emt 0:00:27]} 5. c3 {[%emt 0:00:01]} Ba5 {[%emt 0:00:01]} 6. e3 {[%emt 0:00:01]} O-O {[%emt 0:00:14]} 7. Nf3 {[%emt 0:00:01]} Nh5 {[%emt 0:00:10]} 8. Bd3 {[%emt 0:01:51]} Nxf4 {[%emt 0:01:09]} 9. exf4 {[%emt 0:00:02]} Nd7 {[%emt 0:00:17]} 10. h4 {[%emt 0:00:43]} a6 {[%emt 0:01:57]} 11. Na3 {[%emt 0:00:06]} c5 {[%emt 0:00:01]} 12. dxc5 {[%emt 0:00:57]} Bc7 {[%emt 0:00:02]} 13. g3 {[%emt 0:01:33]} Nxc5 {[%emt 0:00:18]} 14. O-O {[%emt 0:01:50]} h6 {[%emt 0:04:00]} 15. Re1 {[%emt 0:00:14]} b5 {[%emt 0:00:22]} 16. Nc2 {[%emt 0:02:05]} Bb7 {[%emt 0:00:09]} 17. Ncd4 {[%emt 0:00:07]} Qd6 {[%emt 0:00:40]} 18. Qe2 {[%emt 0:02:21]} Rae8 {[%emt 0:02:06]} 19. Rad1 {[%emt 0:00:09]} Qb6 {[%emt 0:00:20]} 20. a3 {[%emt 0:01:10]} Bd6 {[%emt 0:01:28]} 21. Bb1 {[%emt 0:01:02]} Qc7 {[%emt 0:00:01]} 22. Qc2 {[%emt 0:02:39]} Ne4 {[%emt 0:00:04]} 23. Nd2 {[%emt 0:00:33]} Bc5 {[%emt 0:01:36]} 24. Qd3 {[%emt 0:00:30]} Re7 {[%emt 0:00:41]} 25. N2f3 {[%emt 0:00:32]} f6 {[%emt 0:00:51]} 26. Nd2 {[%emt 0:00:44]} Qb6 {[%emt 0:01:57]} 27. f3 {[%emt 0:00:08]} e5 {[%emt 0:00:09]} 28. fxe4 {[%emt 0:00:06]} exd4 {[%emt 0:00:02]} 29. exd5 {[%emt 0:00:11]} dxc3+ {[%emt 0:00:03]} 30. Kh2 {[%emt 0:00:04]} f5 {[%emt 0:00:16]} 31. bxc3 {[%emt 0:00:09]} Bxa3 {[%emt 0:00:15]} 32. Nf3 {[%emt 0:00:21]} Bc8 {[%emt 0:00:21]} 33. Nd4 {[%emt 0:00:05]} Bc5 {[%emt 0:00:13]} 34. Nc6 {[%emt 0:00:13]} Rxe1 {[%emt 0:00:07]} 35. Rxe1 {[%emt 0:00:01]} Bd6 {[%emt 0:00:02]} 36. Kg2 {[%emt 0:00:12]} Qc5 {[%emt 0:00:05]} 37. Re2 {[%emt 0:00:18]} Bb7 {[%emt 0:00:06]} 38. Kh2 {[%emt 0:00:05]} h5 {[%emt 0:00:20]} 39. Nd8 {[%emt 0:00:12]} Bxd5 {[%emt 0:00:14]} 40. Ne6 {[%emt 0:00:13]} Bxe6 {[%emt 0:00:01]} 41. Rxe6 {[%emt 0:00:01]} Qf2+ {[%emt 0:00:06]} 42. Kh3 {[%emt 0:00:04]} Qg1 {[%emt 0:00:19]} 43. Re2 {[%emt 0:00:24]} Kh8 {[%emt 0:00:21]} 44. Qxd6 {[%emt 0:00:09]} Qh1+ {[%emt 0:00:02]} 45. Rh2 {[%emt 0:00:01]} Qf1+ {[%emt 0:00:02]} 46. Rg2 {[%emt 0:00:00]} Qh1+ {[%emt 0:00:05]} 47. Rh2 {[%emt 0:00:01]} Qf1+ {[%emt 0:00:01]} 48. Rg2 {[%emt 0:00:15]} 1/2-1/2

[Event "FIDE Open World Rapid 2024"]
[Site "New York"]
[Date "2024.12.27"]
[Round "7.8"]
[White "Duda, Jan-Krzysztof"]
[Black "Jacobson, Brandon"]
[Result "1-0"]
[ECO "C75"]
[WhiteElo "2740"]
[BlackElo "2583"]
[Annotator "TA"]
[PlyCount "115"]
[EventDate "2024.12.14"]
[EventType "swiss"]
[EventCountry "USA"]
[SourceTitle "playchess.com"]
[Source "ChessBase"]
[SourceQuality "1"]
[TimeControl "900+10"]

{[%evp 64,115,42,36,42,43,95,29,81,77,227,222,640,600,544,513,1850,284,269,278,281,306,509,464,659,667,884,488,553,600,726,716,689,703,698,656,556,515,474,388,1071,858,1378,1304,2203,4578,6279,6059,6128,6006,5665,5632,5575,5173]} 1. e4 {[%emt 0:00:02]} e5 {[%emt 0:00:03]} 2. Nf3 {[%emt 0:00:01]} Nc6 {[%emt 0:00:02]} 3. Bb5 {[%emt 0:00:02]} a6 {[%emt 0:00:03]} 4. Ba4 {[%emt 0:00:01]} d6 {[%emt 0:00:07]} 5. O-O {[%emt 0:00:22]} Bd7 {[%emt 0:00:03]} 6. c3 {[%emt 0:00:04]} Nge7 {[%emt 0:00:05]} 7. d4 {[%emt 0:00:06]} Ng6 {[%emt 0:00:03]} 8. Be3 {[%emt 0:00:22]} Be7 {[%emt 0:00:02]} 9. d5 {[%emt 0:00:19]} Nb8 {[%emt 0:00:06]} 10. Bxd7+ {[%emt 0:00:04]} Qxd7 {[%emt 0:00:10]} 11. c4 {[%emt 0:00:05]} O-O {[%emt 0:00:06]} 12. Nc3 {[%emt 0:00:01]} f5 {[%emt 0:00:04]} 13. exf5 {[%emt 0:00:12]} Qxf5 {[%emt 0:00:04]} 14. Nd2 {[%emt 0:00:11]} Nh4 {[%emt 0:00:37]} 15. g3 {[%emt 0:01:15]} Qg6 {[%emt 0:00:06]} 16. Kh1 {[%emt 0:03:13]} Nf5 {[%emt 0:00:04]} 17. Nde4 {[%emt 0:00:01]} Nd7 {[%emt 0:00:11]} 18. Qd3 {[%emt 0:00:04]} Rf7 {[%emt 0:00:20]} 19. Rae1 {[%emt 0:00:11]} Raf8 {[%emt 0:00:10]} 20. h3 {[%emt 0:01:24]} Nc5 {[%emt 0:06:05]} 21. Qd1 {[%emt 0:01:23]} Nxe4 {[%emt 0:02:31]} 22. Nxe4 {[%emt 0:00:02]} h5 {[%emt 0:00:07]} 23. Qb1 {[%emt 0:02:27]} c5 {[%emt 0:04:19]} 24. b4 {[%emt 0:01:06]} cxb4 {[%emt 0:00:50]} 25. Qxb4 {[%emt 0:00:30]} h4 {[%emt 0:00:48]} 26. g4 {[%emt 0:00:51]} Ng3+ {[%emt 0:00:14]} 27. Nxg3 {[%emt 0:00:04]} hxg3 {[%emt 0:00:02]} 28. Qb1 {[%emt 0:00:03]} Qf6 {[%emt 0:00:53]} 29. f3 {[%emt 0:00:24]} Qh4 {[%emt 0:00:53]} 30. Kg2 {[%emt 0:00:03]} Bg5 {[%emt 0:00:03]} 31. c5 {[%emt 0:00:46]} Bxe3 {[%emt 0:00:24]} 32. Rxe3 {[%emt 0:00:02]} Qh6 {[%emt 0:00:37]} 33. Qe1 {[%emt 0:01:21]} dxc5 {[%emt 0:00:10]} 34. Rxe5 {[%emt 0:00:03]} (34. Kxg3 Re8 $15) 34... Qf4 {[%emt 0:00:13] [#]} (34... c4 $14) 35. Qc3 {[%emt 0:02:12]} (35. Qe2 $1 $16) 35... b6 {[%emt 0:00:09]} (35... b5 $11 {remains equal.}) 36. d6 $16 {[%emt 0:00:18]} Rd8 {[%emt 0:00:02]} (36... Qf6 $2 37. Rd1 (37. Kxg3 Qxd6 38. f4 Rc8 $11) 37... Rd7 (37... Qxf3+ $2 38. Qxf3 Rxf3 39. d7 $18) 38. Qc4+ (38. Kxg3 Qf4+ 39. Kg2 Qf7 $18) 38... Qf7 39. Qe2 $18 (39. Qxa6 $2 Qxf3+ 40. Kg1 Qf2+ 41. Kh1 Qh2#)) (36... b5 $16) 37. Rd1 $18 {[%emt 0:00:10]} Qf6 $2 {[%emt 0:00:19]} (37... b5 38. Rxc5 Rxd6) 38. g5 $18 {[%emt 0:00:41]} (38. Kxg3 Rxd6 39. Rxd6 (39. Re8+ Kh7 $11) 39... Qxd6 $14) 38... Qg6 {[%emt 0:00:07]} 39. Qc4 {[%emt 0:00:16]} Kf8 {[%emt 0:00:08]} (39... b5 $142 40. Qd5 (40. Qxc5 Rxf3 41. Qd5+ Rf7 $18) 40... Qc2+ 41. Rd2 (41. Kxg3 Qc4 $18) 41... Qc4 42. Qxc5 Kh7) 40. Qe4 $2 {[%emt 0:00:56]} (40. Kxg3 Rf5 41. Rxf5+ Qxf5 $14) (40. Qxa6 Rxf3 41. Qc4 (41. Kxf3 Qh5+ 42. Kg2 Qxd1 $11) 41... Qf7 $18) (40. Rde1 a5 41. Qd5 (41. Kxg3 Qxd6 42. Kg2 Qc6 $14)) 40... Qxe4 $18 {[%emt 0:00:10]} 41. fxe4 {[%emt 0:00:01]} (41. Rxe4 Rfd7 $11) 41... Rfd7 {[%emt 0:00:12] [#]} 42. Rf5+ $1 {[%emt 0:00:07]} (42. Kxg3 Rxd6 43. Rf1+ Kg8 $11) (42. Red5 Kf7 $14) 42... Rf7 $2 {[%emt 0:00:10]} (42... Ke8 43. e5 (43. Kxg3 Rxd6 44. Rdf1 c4 $15) 43... Rf7) 43. Kxg3 $18 {[%emt 0:00:08]} c4 {[%emt 0:00:12]} (43... g6 $142 44. Rf6 Rxf6 45. gxf6 Kf7) 44. Kf4 $18 {[%emt 0:00:03]} c3 {[%emt 0:00:14]} 45. Rc1 {[%emt 0:00:26]} Rxd6 {[%emt 0:00:05]} 46. Rxc3 {[%emt 0:00:01]} g6 {[%emt 0:00:15]} 47. Rc8+ {[%emt 0:00:23]} Kg7 {[%emt 0:00:01]} 48. Rxf7+ {[%emt 0:00:01]} Kxf7 {[%emt 0:00:01]} 49. Rc7+ {[%emt 0:00:01]} Kf8 {[%emt 0:00:11]} 50. Ra7 {[%emt 0:00:15]} a5 {[%emt 0:00:11]} 51. Rb7 {[%emt 0:00:02]} Rd3 $2 {[%emt 0:00:13]} (51... Re6 52. h4 Rc6) 52. h4 $18 {[%emt 0:00:24]} ({Weaker is} 52. Rxb6 Rxh3 53. Ke5 (53. Rxg6 Ra3 $11) 53... Ra3 $16) 52... Rh3 {[%emt 0:00:11]} 53. Rxb6 {[%emt 0:00:08]} Rxh4+ {[%emt 0:00:01]} 54. Ke5 {[%emt 0:00:01]} Kf7 {[%emt 0:00:10]} 55. Ra6 {[%emt 0:00:10]} Rg4 {[%emt 0:00:11]} 56. Ra7+ {[%emt 0:00:02]} (56. Rxa5 $2 Rxg5+ 57. Kf4 Rxa5 $19) 56... Ke8 {[%emt 0:00:19]} 57. Kf6 {[%emt 0:00:02]} (57. Rxa5 $2 {perishes.} Rxg5+ 58. Kf4 Rxa5 $19) 57... Rxe4 {[%emt 0:00:06]} 58. Rxa5 {[%emt 0:00:03]} 1-0

[Event "FIDE Open World Rapid 2024"]
[Site "New York"]
[Date "2024.12.27"]
[Round "7.8"]
[White "Sarana, Alexey"]
[Black "Bilych, Oleksii"]
[Result "1-0"]
[ECO "D53"]
[WhiteElo "2674"]
[BlackElo "2435"]
[Annotator "ChessBase"]
[PlyCount "97"]
[EventDate "2024.12.14"]
[EventType "swiss"]
[EventCountry "USA"]
[SourceTitle "playchess.com"]
[Source "ChessBase"]
[SourceQuality "1"]
[TimeControl "900+10"]

1. d4 {[%emt 0:00:01]} d5 {[%emt 0:00:01]} 2. c4 {[%emt 0:00:01]} e6 {[%emt 0:00:01]} 3. Nc3 {[%emt 0:00:01]} Nf6 {[%emt 0:00:01]} 4. Bg5 {[%emt 0:00:05]} c6 {[%emt 0:00:35]} 5. e3 {[%emt 0:00:05]} h6 {[%emt 0:00:07]} 6. Bh4 {[%emt 0:00:18]} Be7 {[%emt 0:00:08]} 7. Nf3 {[%emt 0:00:04]} O-O {[%emt 0:00:10]} 8. Bd3 {[%emt 0:00:01]} dxc4 {[%emt 0:00:03]} 9. Bxc4 {[%emt 0:00:02]} c5 {[%emt 0:00:01]} 10. O-O {[%emt 0:00:18]} cxd4 {[%emt 0:00:07]} 11. exd4 {[%emt 0:00:01]} Nc6 {[%emt 0:00:09]} 12. Re1 {[%emt 0:00:04]} Nh5 {[%emt 0:00:09]} 13. Re4 {[%emt 0:00:02]} Bxh4 {[%emt 0:01:21]} 14. Rxh4 {[%emt 0:00:02]} Nf6 {[%emt 0:00:01]} 15. Ne5 {[%emt 0:00:02]} Qa5 {[%emt 0:04:00]} 16. Qe2 {[%emt 0:04:25]} Ne7 {[%emt 0:02:56]} 17. Rd1 {[%emt 0:01:09]} b6 {[%emt 0:01:43]} 18. Qf3 {[%emt 0:03:58]} Nfd5 {[%emt 0:03:45]} 19. Bd3 {[%emt 0:02:16]} f5 {[%emt 0:00:24]} 20. Qg3 {[%emt 0:01:10]} Rf6 {[%emt 0:00:55]} 21. Bc4 {[%emt 0:00:19]} Ba6 {[%emt 0:00:49]} 22. Bxd5 {[%emt 0:00:14]} Nxd5 {[%emt 0:00:02]} 23. Nd7 {[%emt 0:02:00]} Rf7 {[%emt 0:00:04]} 24. Ne5 {[%emt 0:00:02]} Rf6 {[%emt 0:00:01]} 25. Nxd5 {[%emt 0:00:21]} Qxd5 {[%emt 0:00:03]} 26. Qa3 {[%emt 0:00:05]} Bb7 {[%emt 0:00:35]} 27. f3 {[%emt 0:00:01]} a5 {[%emt 0:00:59]} 28. Rh3 {[%emt 0:00:03]} Rc8 {[%emt 0:00:08]} 29. Rg3 {[%emt 0:00:04]} Rc7 {[%emt 0:00:09]} 30. h4 {[%emt 0:00:05]} Kh7 {[%emt 0:00:10]} 31. h5 {[%emt 0:00:05]} f4 {[%emt 0:00:04]} 32. Rg4 {[%emt 0:00:16]} Rf5 {[%emt 0:00:01]} 33. Ng6 {[%emt 0:00:02]} Qc4 {[%emt 0:00:35]} 34. Nxf4 {[%emt 0:00:34]} e5 {[%emt 0:00:03]} 35. Ng6 {[%emt 0:00:33]} e4 {[%emt 0:00:00]} 36. Nh4 {[%emt 0:01:12]} Rxh5 {[%emt 0:00:25]} 37. Qd6 {[%emt 0:00:01]} exf3 {[%emt 0:00:17]} 38. Qg6+ {[%emt 0:00:02]} Kg8 {[%emt 0:00:01]} 39. Qe8+ {[%emt 0:00:09]} Kh7 {[%emt 0:00:01]} 40. Qxh5 {[%emt 0:00:02]} f2+ {[%emt 0:00:01]} 41. Kh2 {[%emt 0:00:43]} f1=Q {[%emt 0:00:11]} 42. Rxf1 {[%emt 0:00:01]} Qxf1 {[%emt 0:00:01]} 43. Nf5 {[%emt 0:00:01]} Qc1 {[%emt 0:00:42]} 44. Qg6+ {[%emt 0:00:08]} Kh8 {[%emt 0:00:01]} 45. Qe8+ {[%emt 0:00:20]} Kh7 {[%emt 0:00:01]} 46. Qf8 {[%emt 0:00:06]} g6 {[%emt 0:00:31]} 47. Ne7 {[%emt 0:00:01]} Qc4 {[%emt 0:00:11]} 48. d5 {[%emt 0:00:04]} Qxg4 {[%emt 0:00:07]} 49. Qg8# {[%emt 0:00:02]} 1-0

[Event "FIDE Open World Rapid 2024"]
[Site "New York"]
[Date "2024.12.27"]
[Round "7.9"]
[White "Pichot, Alan"]
[Black "Mamedyarov, Shakhriyar"]
[Result "1/2-1/2"]
[ECO "C24"]
[WhiteElo "2637"]
[BlackElo "2738"]
[Annotator "TA"]
[PlyCount "40"]
[EventDate "2024.12.14"]
[EventType "swiss"]
[EventCountry "USA"]
[SourceTitle "playchess.com"]
[Source "ChessBase"]
[SourceQuality "1"]
[TimeControl "900+10"]

{[%evp 13,40,39,40,44,31,38,61,35,38,33,29,40,90,86,95,104,87,39,21,35,37,25,55,52,58,41,57,41,45]} 1. e4 {[%emt 0:00:10]} e5 {[%emt 0:00:01]} 2. Nf3 {[%emt 0:00:02]} Nc6 {[%emt 0:00:01]} 3. Bc4 {[%emt 0:00:08]} Nf6 {[%emt 0:00:03]} 4. d3 {[%emt 0:00:02]} d5 {[%emt 0:00:01]} 5. exd5 {[%emt 0:00:10]} Nxd5 {[%emt 0:00:02]} 6. O-O {[%emt 0:00:13]} Bc5 {[%emt 0:00:05]} 7. Re1 {[%emt 0:01:29]} O-O {[%emt 0:00:05]} 8. Nbd2 {[%emt 0:00:37][%cal Oc2c3]} Nf6 {[%emt 0:00:09]} 9. h3 {[%emt 0:00:10][%cal Oc2c3]} ({Inferior is} 9. Nxe5 Bxf2+ 10. Kxf2 Nxe5 $17) 9... h6 {[%emt 0:00:15]} 10. c3 {[%emt 0:00:24][%cal Oc4b5]} ({Don't play} 10. Nxe5 Qd4 11. Nef3 Qxf2+ 12. Kh1 Bd7 $15) 10... Re8 {[%emt 0:00:24]} 11. b4 {[%emt 0:00:10][%cal Bb2b4,Bb4b5][%mdl 32]} Bd6 {[%emt 0:00:39]} 12. a4 {[%emt 0:01:21]} a5 {[%emt 0:01:20]} (12... a6 $14) 13. b5 $16 {[%emt 0:00:13][%cal Od1b3] [#] Black must now prevent Qb3!} Nb8 {[%emt 0:00:01][%cal Bc6b8,Bb8d7,Bd7f8][%mdl 32]} 14. Qb3 {[%emt 0:01:25][%cal Od3d4] Hoping for d4!} Be6 {[%emt 0:00:46]} 15. d4 {[%emt 0:01:48]} (15. Nxe5 $16 {aiming for d4.} Bxe5 16. Rxe5) 15... Bxc4 $14 {[%emt 0:00:53]} 16. Nxc4 {[%emt 0:00:04]} exd4 {[%emt 0:02:41]} 17. Rxe8+ {[%emt 0:00:02]} ({Don't do} 17. cxd4 $6 Rxe1+ 18. Nxe1 Nbd7 $18) 17... Nxe8 {[%emt 0:00:27]} 18. cxd4 {[%emt 0:00:09] White is slightly better.} Nd7 {[%emt 0:00:07]} 19. Bd2 {[%emt 0:01:47]} b6 $1 {[%emt 0:00:02]} 20. Rc1 {[%emt 0:00:46]} Nf8 {[%emt 0:02:12] Weighted Error Value: White=0.08 (flawless) /Black=0.06 (flawless) .  Mistake:       	White=1     	Black=1      Inaccurate:     	White=1     	Black=1      OK:         	White=6     	Black=5      Best:        	White=1     	Black=2      Strong:       	---       	Black=1} 1/2-1/2